fUST/lending_fUST_20240111
["ID","MTS","AMOUNT","RATE_DAILY","PERIOD"]
[311157244,1704942640269,-3103.68658614,0.00027998,2]
[311157246,1704942640278,-157.84708888,0.00028,2]
[311157248,1704942640288,-500.0,0.00028082,2]
[311157249,1704942640298,-500.0,0.00028219,2]
[311157250,1704942640307,-500.0,0.00028356,2]
[311157251,1704942640317,-500.0,0.00028493,2]
[311157252,1704942640328,-306.0,0.00028493,2]
[311157254,1704942640338,-9100.04106185,0.000285,4]
[311157256,1704942640348,-500.0,0.0002863,2]
[311157258,1704942640357,-254.23001474,0.00028701,3]
[311157260,1704942640366,-155.0,0.00028767,2]
[311157262,1704942640376,-500.0,0.00028767,2]
[311157264,1704942640386,-500.0,0.00028904,2]
[311157266,1704942640395,-154.98450155,0.00029,2]
[311157268,1704942640406,-3807.00559693,0.00029,2]
[311157270,1704942640415,-79469.02841882,0.00029,2]
[311157272,1704942640425,-500.0,0.00029041,2]
[311157274,1704942640434,-153.0,0.00029041,2]
[311157276,1704942640444,-620.25546746,0.00029106,2]
[311157278,1704942640454,-150.98490151,0.00029121,7]
[311157280,1704942640464,-500.0,0.00029178,2]
[311157282,1704942640473,-50000.0,0.00029187,2]
[311157284,1704942640484,-69083.52247843,0.00029187,2]
[311157285,1704942640494,-27964.23917552,0.00029187,3]
[311157288,1704942640505,-5000.0,0.00029194,5]
[311157290,1704942640518,-599.27812027,0.00029201,3]
[311157292,1704942640528,-5816.81856508,0.00029201,3]
[311157302,1704942640617,-307.1403654,0.00029233,2]
[311157304,1704942640628,-500.0,0.00029315,2]
[311157306,1704942640637,-153.0,0.00029315,2]
[311157308,1704942640647,-153.0,0.00029315,2]
[311157310,1704942640658,-153.0,0.00029315,2]
[311157312,1704942640668,-153.0,0.00029315,2]
[311157313,1704942640678,-153.0,0.00029315,2]
[311157314,1704942640690,-500.0,0.00029452,2]
[311157315,1704942640699,-153.0,0.00029452,2]
[311157316,1704942640709,-1500.0,0.000295,2]
[311157317,1704942640718,-152.0,0.00029561,4]
[311157318,1704942640727,-500.0,0.00029589,2]
[311157319,1704942640736,-153.73462599,0.000297,2]
[311157320,1704942640746,-150.98490151,0.00029716,4]
[311157321,1704942640755,-694.10585197,0.00029726,2]
[311157322,1704942640765,-500.0,0.00029726,2]
[311157323,1704942640775,-242.90501079,0.0002976,4]
[311157324,1704942640784,-426.2336021,0.00029789,4]
[311157325,1704942640794,-500.0,0.00029789,4]
[311157326,1704942640804,-500.0,0.00029789,4]
[311157327,1704942640813,-370.97183162,0.00029789,4]
[311157328,1704942640822,-500.0,0.00029789,4]
[311157329,1704942640832,-476.22449285,0.00029789,4]
[311157330,1704942640842,-268.6869823,0.00029789,4]
[311157331,1704942640851,-337.9120652,0.00029789,4]
[311157333,1704942640861,-500.0,0.00029789,4]
[311157335,1704942640872,-500.0,0.00029789,4]
[311157337,1704942640881,-647.93032513,0.00029789,4]
[311157339,1704942640891,-500.0,0.00029789,4]
[311157341,1704942640900,-419.55359402,0.00029789,4]
[311157342,1704942640909,-500.0,0.00029789,4]
[311157343,1704942640920,-158.98792783,0.00029789,4]
[311157345,1704942640930,-334786.13071337,0.0002979,7]
[311157346,1704942640939,-153.73462599,0.00029792,2]
[311157347,1704942640950,-999.90001,0.00029826,2]
[311157348,1704942640959,-881.99515806,0.00029826,2]
[311157350,1704942640968,-431.2476706,0.0002983,2]
[311157351,1704942640977,-500.0,0.00029863,2]
[311157352,1704942640986,-151.2478173,0.00029953,2]
[311157353,1704942640995,-10623.80376589,0.00029974,2]
[311157354,1704942641004,-440081.24963,0.00029999,2]
[311157355,1704942641014,-500.0,0.00029999,2]
[311157356,1704942641026,-31765.67588501,0.0003,14]
[311157357,1704942641147,-10202.84952288,0.0003,14]
[311157358,1704942641159,-84176.42500995,0.0003,14]
[311157359,1704942641169,-6975.26133049,0.0003,4]
[311157360,1704942641180,-15040.88068289,0.0003,4]
[311157361,1704942641190,-1554.3169407,0.0003,4]
[311157362,1704942641201,-236.54101658,0.0003,7]
[311157363,1704942641212,-463.46661998,0.0003,4]
[311157364,1704942641223,-639.80669723,0.0003,4]
[311157365,1704942641232,-686.8051383,0.0003,4]
[311157366,1704942641242,-409.88428547,0.0003,2]
[311157367,1704942641254,-2794.48662757,0.0003,4]
[311157368,1704942641264,-734.76379061,0.0003,4]
[311157369,1704942641276,-154.98450155,0.0003,4]
[311157370,1704942641287,-1025.8328647,0.0003,2]
[311157371,1704942641297,-4452.61455502,0.0003,4]
[311157372,1704942641307,-300.0,0.0003,4]
[311157373,1704942641317,-200.0,0.0003,2]
[311157374,1704942641329,-501.00894022,0.0003,2]
[311157375,1704942641339,-2448.05627337,0.0003,2]
[311157376,1704942641348,-8035.64264101,0.0003,14]
[311157377,1704942641357,-1200.0,0.0003,4]
[311157378,1704942641366,-155.18046676,0.0003,4]
[311157379,1704942641376,-11908.01427053,0.0003,5]
[311157380,1704942641386,-4316.25273776,0.0003,4]
[311157381,1704942641395,-156.43500893,0.0003,4]
[311157382,1704942641404,-155.05361468,0.0003,4]
[311157383,1704942641413,-154.98450155,0.0003,14]
[311157384,1704942641423,-309.82086831,0.0003,2]
[311157385,1704942641433,-157.18870053,0.0003,4]
[311157386,1704942641443,-157.6368582,0.0003,2]
[311157387,1704942641453,-275.0,0.0003,2]
[311157388,1704942641463,-5000.0,0.00030002,2]
[311157389,1704942641474,-5000.0,0.00030012,2]
[311157390,1704942641484,-5000.0,0.00030018,2]
[311157391,1704942641493,-5000.0,0.00030028,2]
[311157392,1704942641503,-4999.99,0.00030029,2]
[311157393,1704942641513,-38379.93475574,0.00030036,3]
[311157394,1704942641524,-4999.99,0.00030037,2]
[311157395,1704942641532,-5000.0,0.00030042,2]
[311157396,1704942641542,-5000.0,0.00030043,2]
[311157397,1704942641551,-2439.03,0.00030048,2]
[311157398,1704942641561,-5000.0,0.00030051,2]
[311157399,1704942641570,-2000.0,0.000301,2]
[311157400,1704942641581,-1864.30348606,0.00030107,19]
[311157401,1704942641593,-2000.0,0.0003011,2]
[311157402,1704942641602,-2000.0,0.0003012,2]
[311157403,1704942641612,-155.16996431,0.00030124,4]
[311157404,1704942641621,-476.07797065,0.00030125,4]
[311157405,1704942641631,-197.37626976,0.0003013,2]
[311157406,1704942641641,-2000.0,0.0003013,2]
[311157407,1704942641651,-282.67247261,0.00030136,3]
[311157408,1704942641661,-154.98450155,0.00030136,2]
[311157409,1704942641671,-500.0,0.00030136,2]
[311157410,1704942641683,-500.0,0.00030136,2]
[311157411,1704942641693,-500.0,0.00030136,2]
[311157412,1704942641702,-500.0,0.00030136,2]
[311157413,1704942641711,-500.0,0.00030136,2]
[311157414,1704942641720,-500.0,0.00030136,2]
[311157415,1704942641730,-500.0,0.00030136,2]
[311157416,1704942641739,-500.0,0.00030136,2]
[311157417,1704942641748,-500.0,0.00030136,2]
[311157418,1704942641757,-500.0,0.00030136,2]
[311157419,1704942641767,-573.20229012,0.00030136,2]
[311157420,1704942641777,-500.0,0.00030136,2]
[311157421,1704942641786,-500.0,0.00030136,2]
[311157422,1704942641795,-500.0,0.00030136,2]
[311157423,1704942641805,-993.17,0.00030136,2]
[311157424,1704942641815,-421.07384829,0.00030136,2]
[311157425,1704942641825,-500.0,0.00030136,2]
[311157426,1704942641836,-258.27903606,0.00030136,2]
[311157427,1704942641846,-500.0,0.00030136,2]
[311157428,1704942641856,-502.21,0.00030136,2]
[311157429,1704942641865,-500.0,0.00030136,2]
[311157430,1704942641875,-500.0,0.00030136,2]
[311157431,1704942641885,-500.0,0.00030136,2]
[311157432,1704942641894,-557.70085945,0.00030136,2]
[311157433,1704942641903,-500.0,0.00030136,2]
[311157434,1704942641912,-500.0,0.00030136,2]
[311157435,1704942641921,-500.0,0.00030136,2]
[311157436,1704942641931,-384.12539335,0.00030136,2]
[311157437,1704942641940,-909.81265157,0.00030136,2]
[311157438,1704942641950,-500.0,0.00030136,2]
[311157439,1704942641960,-500.0,0.00030136,2]
[311157440,1704942641969,-257.42195307,0.00030136,2]
[311157441,1704942641978,-301.39905633,0.00030136,2]
[311157442,1704942641988,-500.0,0.00030136,2]
[311157443,1704942641998,-500.0,0.00030136,2]
[311157444,1704942642007,-500.0,0.00030136,2]
[311157445,1704942642017,-588.93005954,0.00030136,2]
[311157446,1704942642026,-500.0,0.00030136,2]
[311157447,1704942642035,-500.0,0.00030136,2]
[311157448,1704942642045,-500.0,0.00030136,2]
[311157449,1704942642055,-503.03106236,0.00030136,2]
[311157450,1704942642065,-500.0,0.00030136,2]
[311157451,1704942642075,-500.0,0.00030136,2]
[311157452,1704942642085,-507.3107083,0.00030136,2]
[311157453,1704942642095,-626.59,0.00030136,2]
[311157454,1704942642105,-500.0,0.00030136,2]
[311157455,1704942642114,-500.0,0.00030136,2]
[311157456,1704942642124,-501.73358744,0.00030136,2]
[311157457,1704942642134,-500.0,0.00030136,2]
[311157458,1704942642143,-500.0,0.00030136,2]
[311157459,1704942642152,-500.0,0.00030136,2]
[311157460,1704942642162,-501.08575708,0.00030136,2]
[311157461,1704942642172,-500.0,0.00030136,2]
[311157462,1704942642183,-500.0,0.00030136,2]
[311157463,1704942642193,-500.81343408,0.00030136,2]
[311157464,1704942642202,-1719.01,0.00030136,2]
[311157465,1704942642212,-500.0,0.00030136,2]
[311157466,1704942642223,-500.0,0.00030136,2]
[311157467,1704942642233,-500.0,0.00030136,2]
[311157468,1704942642243,-500.0,0.00030136,2]
[311157469,1704942642253,-594.76805938,0.00030136,2]
[311157470,1704942642263,-500.0,0.00030136,2]
[311157471,1704942642274,-500.0,0.00030136,2]
[311157472,1704942642285,-500.0,0.00030136,2]
[311157473,1704942642294,-501.07299609,0.00030136,2]
[311157474,1704942642304,-556.52601552,0.00030136,2]
[311157475,1704942642313,-609.59021071,0.00030136,2]
[311157476,1704942642322,-500.0,0.00030136,2]
[311157477,1704942642331,-500.0,0.00030136,2]
[311157478,1704942642340,-500.0,0.00030136,2]
[311157479,1704942642349,-500.0,0.00030136,2]
[311157480,1704942642358,-500.0,0.00030136,2]
[311157481,1704942642367,-186.76567446,0.00030136,2]
[311157482,1704942642376,-200.0,0.00030136,2]
[311157483,1704942642385,-500.0,0.00030136,2]
[311157484,1704942642394,-500.0,0.00030136,2]
[311157485,1704942642403,-502.06388633,0.00030136,2]
[311157486,1704942642412,-500.0,0.00030136,2]
[311157487,1704942642421,-500.0,0.00030136,2]
[311157488,1704942642430,-500.0,0.00030136,2]
[311157489,1704942642439,-500.0,0.00030136,2]
[311157490,1704942642448,-506.72182713,0.00030136,2]
[311157491,1704942642458,-502.0635084,0.00030136,2]
[311157493,1704942642550,-500.0,0.00030136,2]
[311157494,1704942642560,-500.0,0.00030136,2]
[311157496,1704942642569,-500.0,0.00030136,2]
[311157498,1704942642579,-472.92553593,0.00030136,2]
[311157499,1704942642589,-160.73162302,0.00030136,2]
[311157500,1704942642598,-500.0,0.00030136,2]
[311157501,1704942642607,-418.33957218,0.00030136,2]
[311157502,1704942642617,-642.73342,0.00030136,2]
[311157503,1704942642627,-500.0,0.00030136,2]
[311157504,1704942642636,-500.0,0.00030136,2]
[311157505,1704942642646,-500.0,0.00030136,2]
[311157506,1704942642655,-498.4439831,0.00030136,2]
[311157507,1704942642664,-500.0,0.00030136,2]
[311157508,1704942642673,-500.0,0.00030136,2]
[311157509,1704942642683,-500.0,0.00030136,2]
[311157510,1704942642693,-500.0,0.00030136,2]
[311157511,1704942642703,-500.0,0.00030136,2]
[311157512,1704942642712,-500.0,0.00030136,2]
[311157513,1704942642721,-500.0,0.00030136,2]
[311157515,1704942642730,-500.0,0.00030136,2]
[311157517,1704942642740,-500.0,0.00030136,2]
[311157519,1704942642749,-500.0,0.00030136,2]
[311157521,1704942642758,-345.71155924,0.00030136,2]
[311157523,1704942642767,-525.95,0.00030136,2]
[311157524,1704942642776,-500.0,0.00030136,2]
[311157525,1704942642784,-500.0,0.00030136,2]
[311157526,1704942642793,-500.0,0.00030136,2]
[311157527,1704942642802,-155.87360249,0.00030136,2]
[311157528,1704942642811,-500.0,0.00030136,2]
[311157529,1704942642821,-500.0,0.00030136,2]
[311157530,1704942642830,-500.0,0.00030136,2]
[311157532,1704942642839,-500.0,0.00030136,2]
[311157534,1704942642848,-500.0,0.00030136,2]
[311157536,1704942642861,-500.0,0.00030136,2]
[311157537,1704942642872,-544.69,0.00030136,2]
[311157538,1704942642881,-500.0,0.00030136,2]
[311157540,1704942642890,-500.0,0.00030136,2]
[311157542,1704942642900,-500.0,0.00030136,2]
[311157544,1704942642909,-500.0,0.00030136,2]
[311157545,1704942642919,-508.19728668,0.00030136,2]
[311157547,1704942642928,-659.74,0.00030136,2]
[311157549,1704942642938,-500.0,0.00030136,2]
[311157551,1704942642949,-500.0,0.00030136,2]
[311157553,1704942642959,-500.0,0.00030136,2]
[311157554,1704942642968,-500.0,0.00030136,2]
[311157556,1704942642977,-500.0,0.00030136,2]
[311157557,1704942642986,-217.3164488,0.00030136,2]
[311157558,1704942642996,-504.14164348,0.00030136,2]
[311157559,1704942643005,-505.8736009,0.00030136,2]
[311157560,1704942643014,-342.01621906,0.00030136,2]
[311157561,1704942643024,-500.0,0.00030136,2]
[311157562,1704942643035,-500.0,0.00030136,2]
[311157563,1704942643044,-732.65,0.00030136,2]
[311157564,1704942643053,-500.0,0.00030136,2]
[311157565,1704942643062,-500.0,0.00030136,2]
[311157566,1704942643071,-500.0,0.00030136,2]
[311157567,1704942643080,-500.0,0.00030136,2]
[311157568,1704942643089,-500.0,0.00030136,2]
[311157569,1704942643099,-500.0,0.00030136,2]
[311157571,1704942643109,-303.4997889,0.00030136,2]
[311157573,1704942643119,-500.0,0.00030136,2]
[311157575,1704942643128,-500.0,0.00030136,2]
[311157577,1704942643139,-500.0,0.00030136,2]
[311157579,1704942643149,-556.4,0.00030136,2]
[311157580,1704942643159,-507.64157396,0.00030136,2]
[311157582,1704942643170,-500.0,0.00030136,2]
[311157583,1704942643179,-500.0,0.00030136,2]
[311157584,1704942643189,-500.0,0.00030136,2]
[311157585,1704942643199,-500.0,0.00030136,2]
[311157586,1704942643209,-500.0,0.00030136,2]
[311157587,1704942643219,-500.0,0.00030136,2]
[311157588,1704942643228,-500.0,0.00030136,2]
[311157589,1704942643238,-175.33938275,0.00030136,2]
[311157590,1704942643248,-500.0,0.00030136,2]
[311157591,1704942643259,-150.0,0.00030136,2]
[311157592,1704942643269,-500.0,0.00030136,2]
[311157593,1704942643278,-500.0,0.00030136,2]
[311157594,1704942643289,-500.0,0.00030136,2]
[311157595,1704942643299,-500.41,0.00030136,2]
[311157596,1704942643310,-500.0,0.00030136,2]
[311157597,1704942643319,-500.0,0.00030136,2]
[311157598,1704942643329,-500.0,0.00030136,2]
[311157599,1704942643339,-500.0,0.00030136,2]
[311157600,1704942643348,-500.0,0.00030136,2]
[311157601,1704942643357,-500.0,0.00030136,2]
[311157602,1704942643366,-500.0,0.00030136,2]
[311157603,1704942643375,-500.0,0.00030136,2]
[311157604,1704942643384,-500.0,0.00030136,2]
[311157605,1704942643393,-500.0,0.00030136,2]
[311157606,1704942643402,-500.0,0.00030136,2]
[311157607,1704942643411,-507.68147259,0.00030136,2]
[311157608,1704942643420,-1211.83,0.00030136,2]
[311157609,1704942643428,-500.0,0.00030136,2]
[311157610,1704942643438,-500.0,0.00030136,2]
[311157611,1704942643447,-502.49872204,0.00030136,2]
[311157612,1704942643456,-500.0,0.00030136,5]
[311157613,1704942643465,-500.0,0.00030136,2]
[311157614,1704942643474,-500.0,0.00030136,2]
[311157615,1704942643483,-683.46,0.00030136,2]
[311157616,1704942643492,-500.0,0.00030136,2]
[311157617,1704942643501,-500.0,0.00030136,2]
[311157618,1704942643510,-500.0,0.00030136,2]
[311157619,1704942643519,-500.0,0.00030136,2]
[311157620,1704942643528,-557.43,0.00030136,2]
[311157621,1704942643537,-500.0,0.00030136,2]
[311157622,1704942643546,-936.21,0.00030136,2]
[311157623,1704942643556,-500.0,0.00030136,2]
[311157624,1704942643564,-500.0,0.00030136,2]
[311157625,1704942643574,-500.0,0.00030136,2]
[311157626,1704942643583,-2074.55,0.00030136,2]
[311157627,1704942643592,-849.19,0.00030136,2]
[311157628,1704942643601,-850.7,0.00030136,2]
[311157629,1704942643610,-500.0,0.00030136,2]
[311157630,1704942643619,-500.0,0.00030136,2]
[311157631,1704942643628,-500.0,0.00030136,2]
[311157632,1704942643637,-500.0,0.00030136,2]
[311157633,1704942643647,-500.0,0.00030136,2]
[311157634,1704942643656,-500.0,0.00030136,2]
[311157635,1704942643666,-500.0,0.00030136,2]
[311157636,1704942643675,-500.0,0.00030136,2]
[311157637,1704942643684,-9680.85,0.00030136,2]
[311157638,1704942643695,-1000.0,0.00030136,2]
[311157639,1704942643704,-500.0,0.00030136,2]
[311157640,1704942643713,-500.0,0.00030136,2]
[311157641,1704942643723,-500.0,0.00030136,2]
[311157642,1704942643732,-500.0,0.00030136,2]
[311157643,1704942643742,-500.0,0.00030136,2]
[311157644,1704942643751,-500.0,0.00030136,2]
[311157645,1704942643760,-500.0,0.00030136,2]
[311157646,1704942643769,-502.33696748,0.00030136,2]
[311157647,1704942643778,-500.0,0.00030136,2]
[311157648,1704942643788,-500.0,0.00030136,2]
[311157649,1704942643797,-500.0,0.00030136,2]
[311157650,1704942643807,-500.0,0.00030136,2]
[311157651,1704942643816,-500.0,0.00030136,2]
[311157652,1704942643825,-500.0,0.00030136,2]
[311157653,1704942643835,-230.84334159,0.00030136,2]
[311157654,1704942643844,-647.95,0.00030136,2]
[311157655,1704942643853,-500.0,0.00030136,2]
[311157656,1704942643862,-500.0,0.00030136,2]
[311157657,1704942643871,-1103.63,0.00030136,2]
[311157658,1704942643881,-500.0,0.00030136,2]
[311157659,1704942643890,-651.91,0.00030136,2]
[311157660,1704942643899,-651.91,0.00030136,2]
[311157661,1704942643908,-651.91,0.00030136,2]
[311157662,1704942643917,-651.91,0.00030136,2]
[311157663,1704942643926,-651.91,0.00030136,2]
[311157664,1704942643935,-651.91,0.00030136,2]
[311157665,1704942643944,-651.91,0.00030136,2]
[311157666,1704942643954,-651.91,0.00030136,2]
[311157667,1704942643964,-5674.81,0.00030136,2]
[311157668,1704942643972,-651.91,0.00030136,2]
[311157669,1704942643982,-651.91,0.00030136,2]
[311157670,1704942643991,-651.91,0.00030136,2]
[311157671,1704942644001,-651.91,0.00030136,2]
[311157672,1704942644010,-651.91,0.00030136,2]
[311157673,1704942644019,-651.91,0.00030136,2]
[311157674,1704942644028,-651.91,0.00030136,2]
[311157675,1704942644037,-651.91,0.00030136,2]
[311157676,1704942644047,-651.91,0.00030136,2]
[311157677,1704942644056,-651.91,0.00030136,2]
[311157678,1704942644065,-500.0,0.00030136,2]
[311157679,1704942644074,-651.91,0.00030136,2]
[311157680,1704942644083,-651.91,0.00030136,2]
[311157681,1704942644091,-651.91,0.00030136,2]
[311157682,1704942644100,-500.0,0.00030136,2]
[311157683,1704942644110,-651.91,0.00030136,2]
[311157684,1704942644119,-651.91,0.00030136,2]
[311157685,1704942644128,-652.09273758,0.00030136,2]
[311157686,1704942644137,-500.0,0.00030136,2]
[311157687,1704942644146,-6467.16,0.00030136,2]
[311157688,1704942644155,-500.0,0.00030136,2]
[311157689,1704942644164,-500.0,0.00030136,2]
[311157690,1704942644173,-500.0,0.00030136,2]
[311157691,1704942644182,-249.41632993,0.00030136,2]
[311157692,1704942644191,-501.46158454,0.00030136,2]
[311157693,1704942644200,-471.53290531,0.00030136,2]
[311157694,1704942644210,-500.0,0.00030136,2]
[311157695,1704942644219,-2335.31,0.00030136,2]
[311157696,1704942644228,-503.58951004,0.00030136,2]
[311157697,1704942644237,-500.0,0.00030136,2]
[311157698,1704942644246,-505.49538568,0.00030136,2]
[311157699,1704942644255,-504.5661768,0.00030136,2]
[311157700,1704942644265,-500.0,0.00030136,2]
[311157701,1704942644274,-503.66399589,0.00030136,2]
[311157702,1704942644283,-10000.0,0.00030136,10]
[311157703,1704942644292,-15301.03,0.00030136,2]
[311157704,1704942644301,-510.44514775,0.00030136,2]
[311157705,1704942644310,-3514.61,0.00030136,2]
[311157706,1704942644321,-500.0,0.00030136,2]
[311157707,1704942644330,-1627.99,0.00030136,2]
[311157708,1704942644339,-503.18365884,0.00030136,2]
[311157709,1704942644424,-500.0,0.00030136,2]
[311157710,1704942644433,-500.0,0.00030136,2]
[311157711,1704942644442,-501.82843532,0.00030136,2]
[311157712,1704942644451,-507.36864681,0.00030136,2]
[311157713,1704942644460,-500.0,0.00030136,2]
[311157714,1704942644469,-500.0,0.00030136,2]
[311157715,1704942644478,-500.38866514,0.00030136,2]
[311157716,1704942644487,-506.55738065,0.00030136,2]
[311157717,1704942644496,-705.7,0.00030136,2]
[311157718,1704942644506,-500.0,0.00030136,2]
[311157719,1704942644515,-500.0,0.00030136,2]
[311157720,1704942644524,-500.0,0.00030136,2]
[311157721,1704942644533,-200.61953262,0.00030136,2]
[311157722,1704942644542,-500.0,0.00030136,2]
[311157723,1704942644552,-719.59,0.00030136,2]
[311157724,1704942644561,-500.0,0.00030136,2]
[311157725,1704942644570,-500.0,0.00030136,2]
[311157726,1704942644579,-500.0,0.00030136,2]
[311157727,1704942644589,-3159.63,0.00030136,2]
[311157728,1704942644598,-1045.15,0.00030136,2]
[311157729,1704942644607,-1723.1,0.00030136,2]
[311157730,1704942644617,-500.0,0.00030136,2]
[311157731,1704942644627,-500.0,0.00030136,2]
[311157732,1704942644636,-500.0,0.00030136,2]
[311157733,1704942644645,-500.0,0.00030136,2]
[311157734,1704942644654,-500.0,0.00030136,2]
[311157735,1704942644663,-500.0,0.00030136,2]
[311157736,1704942644672,-500.0,0.00030136,2]
[311157737,1704942644681,-535.42,0.00030136,2]
[311157738,1704942644690,-500.0,0.00030136,2]
[311157739,1704942644699,-5000.0,0.00030137,2]
[311157740,1704942644711,-5000.0,0.00030137,2]
[311157741,1704942644720,-2968.5594772,0.00030137,2]
[311157742,1704942644730,-5744.9312935,0.00030137,2]
[311157743,1704942644739,-405.67767986,0.00030137,2]
[311157744,1704942644748,-155.0,0.00030137,2]
[311157745,1704942644757,-153.89428806,0.00030139,2]
[311157746,1704942644766,-2000.0,0.0003014,2]
[311157747,1704942644776,-2000.0,0.0003015,2]
[311157748,1704942644785,-2000.0,0.0003016,2]
[311157749,1704942644794,-2000.0,0.0003017,2]
[311157750,1704942644804,-2000.0,0.0003018,2]
[311157751,1704942644813,-2000.0,0.0003019,2]
[311157752,1704942644822,-681.11468394,0.000302,3]
[311157753,1704942644832,-2000.0,0.000302,2]
[311157754,1704942644841,-2000.0,0.0003021,2]
[311157755,1704942644851,-2000.0,0.0003022,2]
[311157756,1704942644860,-2000.0,0.0003023,2]
[311157757,1704942644873,-169.4,0.0003023,2]
[311157758,1704942644882,-169.4,0.0003023,2]
[311157759,1704942644892,-1104.233674,0.0003023,2]
[311157760,1704942644901,-1104.233674,0.0003023,2]
[311157761,1704942644910,-5433.160826,0.0003023,2]
[311157762,1704942644920,-5433.160826,0.0003023,2]
[311157763,1704942644930,-2000.0,0.0003024,2]
[311157764,1704942644939,-2000.0,0.0003025,2]
[311157765,1704942644949,-2000.0,0.0003026,2]
[311157766,1704942644958,-2000.0,0.0003027,2]
[311157767,1704942644967,-500.0,0.00030273,2]
[311157768,1704942644977,-2000.0,0.0003028,2]
[311157769,1704942644986,-2091.019858,0.0003029,2]
[311157770,1704942644995,-153.73462599,0.00030297,7]
[311157771,1704942645005,-150.98490151,0.00030322,2]
[311157772,1704942645014,-1000.0,0.00030343,7]
[311157773,1704942645024,-152.31502045,0.00030345,7]
[311157774,1704942645033,-816.731,0.0003038,4]
[311157775,1704942645043,-816.732,0.0003038,4]
[311157776,1704942645052,-816.731,0.0003038,4]
[311157777,1704942645061,-816.732,0.0003038,4]
[311157778,1704942645071,-816.731,0.0003038,4]
[311157779,1704942645080,-909.0,0.000304,2]
[311157780,1704942645089,-152.31502045,0.00030403,7]
[311157781,1704942645099,-500.0,0.0003041,2]
[311157782,1704942645108,-500.0,0.0003041,2]
[311157783,1704942645117,-500.0,0.0003041,2]
[311157784,1704942645126,-500.0,0.0003041,2]
[311157785,1704942645135,-500.0,0.0003041,2]
[311157786,1704942645144,-500.0,0.0003041,2]
[311157787,1704942645155,-500.25239641,0.0003041,2]
[311157788,1704942645165,-501.95390524,0.0003041,2]
[311157789,1704942645174,-500.0,0.0003041,2]
[311157790,1704942645184,-545.28763592,0.0003041,2]
[311157791,1704942645196,-500.0,0.0003041,2]
[311157792,1704942645205,-500.0,0.0003041,2]
[311157793,1704942645214,-500.0,0.0003041,2]
[311157794,1704942645223,-993.17,0.0003041,2]
[311157795,1704942645232,-500.0,0.0003041,2]
[311157796,1704942645241,-500.0,0.0003041,2]
[311157797,1704942645250,-502.21,0.0003041,2]
[311157798,1704942645260,-500.0,0.0003041,2]
[311157799,1704942645271,-311.39649081,0.0003041,2]
[311157800,1704942645280,-633.21734718,0.0003041,2]
[311157801,1704942645290,-500.0,0.0003041,2]
[311157802,1704942645300,-500.0,0.0003041,2]
[311157803,1704942645310,-179.29970668,0.0003041,2]
[311157804,1704942645319,-530.19489255,0.0003041,2]
[311157805,1704942645328,-500.0,0.0003041,2]
[311157806,1704942645337,-500.0,0.0003041,2]
[311157807,1704942645346,-500.0,0.0003041,2]
[311157808,1704942645355,-500.0,0.0003041,2]
[311157809,1704942645364,-500.0,0.0003041,2]
[311157810,1704942645374,-500.0,0.0003041,2]
[311157811,1704942645383,-500.0,0.0003041,2]